fUST/lending_fUST_20250301
["ID","MTS","AMOUNT","RATE_DAILY","PERIOD"]
[354912999,1740814247643,-582.63,0.00035067,2]
[354913000,1740814247652,-500.0,0.00035067,2]
[354913001,1740814247662,-500.0,0.00035067,2]
[354913002,1740814247671,-7940.9,0.00035067,2]
[354913003,1740814247680,-580.69,0.00035067,2]
[354913004,1740814247690,-500.0,0.00035067,2]
[354913005,1740814247699,-500.0,0.00035067,2]
[354913006,1740814247708,-500.0,0.00035067,2]
[354913007,1740814247718,-1646.51,0.00035067,2]
[354913008,1740814247728,-500.0,0.00035067,2]
[354913009,1740814247737,-2619.44,0.00035067,2]
[354913010,1740814247747,-500.0,0.00035067,2]
[354913011,1740814247757,-696.96,0.00035067,2]
[354913012,1740814247766,-4192.25,0.00035067,2]
[354913013,1740814247776,-500.0,0.00035067,2]
[354913014,1740814247787,-1437.91,0.00035067,2]
[354913015,1740814247799,-151.0,0.00035067,14]
[354913016,1740814247809,-500.0,0.00035067,2]
[354913017,1740814247819,-2160.39,0.00035067,2]
[354913018,1740814247829,-953.1,0.00035067,2]
[354913019,1740814247839,-500.0,0.00035067,2]
[354913020,1740814247849,-500.0,0.00035067,2]
[354913021,1740814247859,-151.0,0.00035067,14]
[354913022,1740814247872,-500.0,0.00035067,2]
[354913023,1740814247882,-500.0,0.00035067,2]
[354913024,1740814247892,-2272.48,0.00035067,2]
[354913025,1740814247902,-606.21415,0.00035067,14]
[354913026,1740814247912,-606.21415,0.00035067,14]
[354913027,1740814247923,-505.87870808,0.00035067,2]
[354913028,1740814247934,-500.0,0.00035067,2]
[354913029,1740814247943,-971.3,0.00035067,2]
[354913030,1740814247954,-782.01,0.00035067,2]
[354913031,1740814247963,-579.95,0.00035067,2]
[354913032,1740814247984,-500.0,0.00035067,2]
[354913033,1740814247995,-500.0,0.00035067,2]
[354913034,1740814248005,-2490.86,0.00035067,2]
[354913035,1740814248014,-500.0,0.00035067,2]
[354913036,1740814248024,-502.93729605,0.00035067,2]
[354913037,1740814248034,-500.0,0.00035067,2]
[354913038,1740814248044,-500.0,0.00035067,2]
[354913039,1740814248054,-1283.55,0.00035067,2]
[354913040,1740814248064,-819.59,0.00035067,2]
[354913041,1740814248074,-1720.07,0.00035067,2]
[354913042,1740814248084,-151.0,0.00035067,14]
[354913043,1740814248093,-1108.74,0.00035067,2]
[354913044,1740814248104,-542.75,0.00035067,2]
[354913045,1740814248114,-500.0,0.00035067,2]
[354913046,1740814248124,-320.33427749,0.00035067,2]
[354913047,1740814248134,-500.0,0.00035067,2]
[354913048,1740814248144,-2520.64,0.00035067,2]
[354913049,1740814248155,-500.0,0.00035067,2]
[354913050,1740814248165,-1440.06,0.00035067,2]
[354913051,1740814248175,-250591.52,0.00035067,2]
[354913052,1740814248185,-500.0,0.00035067,2]
[354913053,1740814248196,-500.0,0.00035067,2]
[354913054,1740814248206,-500.0,0.00035067,2]
[354913055,1740814248215,-151.0,0.00035067,14]
[354913056,1740814248226,-500.0,0.00035067,2]
[354913057,1740814248237,-1591.54,0.00035067,2]
[354913058,1740814248246,-151.0,0.00035067,14]
[354913059,1740814248256,-788.45,0.00035067,2]
[354913060,1740814248266,-686.05,0.00035067,2]
[354913061,1740814248276,-500.0,0.00035067,2]
[354913062,1740814248286,-500.0,0.00035067,2]
[354913063,1740814248296,-500.0,0.00035067,2]
[354913064,1740814248306,-500.0,0.00035067,2]
[354913065,1740814248315,-500.0,0.00035067,2]
[354913066,1740814248325,-4823.85,0.00035067,2]
[354913067,1740814248335,-2595.04,0.00035067,2]
[354913068,1740814248346,-13580.99,0.00035067,2]
[354913069,1740814248356,-500.0,0.00035067,2]
[354913070,1740814248366,-500.0,0.00035067,2]
[354913071,1740814248376,-257.61973691,0.00035067,2]
[354913072,1740814248385,-500.0,0.00035067,2]
[354913073,1740814248396,-504.32897292,0.00035067,2]
[354913074,1740814248406,-2616.62,0.00035067,2]
[354913075,1740814248416,-556.6,0.00035067,2]
[354913076,1740814248425,-500.0,0.00035067,2]
[354913077,1740814248435,-500.0,0.00035067,2]
[354913078,1740814248445,-500.0,0.00035067,2]
[354913079,1740814248455,-1549.53,0.00035067,2]
[354913080,1740814248465,-500.0,0.00035067,2]
[354913081,1740814248475,-500.0,0.00035067,2]
[354913082,1740814248485,-151.0,0.00035067,14]
[354913083,1740814248495,-500.0,0.00035067,2]
[354913084,1740814248505,-500.0,0.00035067,2]
[354913085,1740814248515,-506.83886918,0.00035067,2]
[354913086,1740814248525,-500.0,0.00035067,2]
[354913087,1740814248535,-500.0,0.00035067,2]
[354913088,1740814248544,-1973.99,0.00035067,2]
[354913089,1740814248554,-1822.02,0.00035067,2]
[354913090,1740814248563,-890.47,0.00035067,2]
[354913091,1740814248573,-500.0,0.00035067,2]
[354913092,1740814248582,-500.0,0.00035067,2]
[354913093,1740814248592,-2792.48,0.00035067,2]
[354913094,1740814248602,-500.0,0.00035067,2]
[354913095,1740814248611,-538.31,0.00035067,2]
[354913096,1740814248621,-500.0,0.00035067,2]
[354913097,1740814248631,-500.0,0.00035067,2]
[354913098,1740814248641,-500.0,0.00035067,2]
[354913099,1740814248651,-598.87,0.00035067,120]
[354913100,1740814248661,-500.0,0.00035067,2]
[354913101,1740814248671,-2655.0,0.00035067,2]
[354913102,1740814248680,-500.0,0.00035067,2]
[354913103,1740814248690,-500.43,0.00035067,2]
[354913104,1740814248699,-500.0,0.00035067,2]
[354913105,1740814248709,-500.0,0.00035067,2]
[354913106,1740814248718,-500.0,0.00035067,2]
[354913107,1740814248728,-559.59,0.00035067,2]
[354913108,1740814248738,-500.0,0.00035067,2]
[354913109,1740814248747,-500.0,0.00035067,2]
[354913110,1740814248757,-525.66,0.00035067,2]
[354913111,1740814248766,-507.09806927,0.00035067,2]
[354913112,1740814248776,-500.0,0.00035067,2]
[354913113,1740814248789,-1631.27,0.00035068,2]
[354913114,1740814248799,-500.0,0.00035068,2]
[354913115,1740814248809,-1335.74,0.00035068,2]
[354913116,1740814248819,-1232.32,0.00035068,2]
[354913117,1740814248831,-952.84,0.00035068,2]
[354913118,1740814248840,-549.74,0.00035068,2]
[354913119,1740814248850,-529.1,0.00035068,2]
[354913120,1740814248873,-1414.45,0.00035068,2]
[354913121,1740814248884,-1288.1,0.00035068,2]
[354913122,1740814248893,-500.0,0.00035068,2]
[354913123,1740814248905,-500.0,0.00035068,2]
[354913124,1740814248923,-500.0,0.00035068,2]
[354913125,1740814248933,-500.0,0.00035068,2]
[354913126,1740814248942,-516.91,0.00035068,2]
[354913127,1740814248952,-1508.46,0.00035068,2]
[354913128,1740814248962,-1127.29,0.00035068,2]
[354913129,1740814248971,-500.0,0.00035068,2]
[354913130,1740814248981,-500.0,0.00035068,2]
[354913131,1740814248991,-500.0,0.00035068,2]
[354913132,1740814249000,-500.0,0.00035068,2]
[354913133,1740814249010,-500.0,0.00035068,2]
[354913134,1740814249021,-627.79,0.00035068,2]
[354913135,1740814249031,-868.84,0.00035068,2]
[354913136,1740814249040,-500.0,0.00035068,2]
[354913137,1740814249050,-1239.75,0.00035068,2]
[354913138,1740814249060,-500.0,0.00035068,2]
[354913139,1740814249070,-500.0,0.00035068,2]
[354913140,1740814249086,-1937.87,0.00035068,2]
[354913141,1740814249096,-51.45363378,0.00035068,2]
[354913142,1740814251736,-1801.97636622,0.00035068,2]
[354913143,1740814251746,-840.15677217,0.00035068,2]
[354913144,1740814252920,-164.165299,0.00031931,2]
[354913145,1740814252930,-500.0,0.00032876,2]
[354913146,1740814252940,-500.0,0.0003315,2]
[354913147,1740814252950,-500.0,0.00033423,2]
[354913148,1740814252959,-500.0,0.00033423,2]
[354913149,1740814252969,-500.0,0.00033424,2]
[354913150,1740814252978,-500.0,0.00033697,2]
[354913151,1740814252988,-500.0,0.00033697,2]
[354913152,1740814252997,-402.29894394,0.00033698,2]
[354913153,1740814253013,-97.70105606,0.00033698,2]
[354913154,1740814253023,-500.0,0.00033971,2]
[354913155,1740814253033,-500.0,0.00033971,2]
[354913156,1740814253042,-226.61,0.00033972,2]
[354913157,1740814253052,-500.0,0.00034245,2]
[354913158,1740814253061,-172.58,0.00034245,2]
[354913159,1740814253071,-338.95917872,0.00034519,2]
[354913160,1740814253081,-294.46322783,0.00035068,2]
[354913161,1740814253091,-553.43,0.00035068,2]
[354913162,1740814253100,-500.0,0.00035068,2]
[354913163,1740814253110,-881.15,0.00035068,2]
[354913164,1740814253119,-500.0,0.00035068,2]
[354913165,1740814253129,-803.67,0.00035068,2]
[354913166,1740814253138,-500.0,0.00035068,2]
[354913167,1740814253148,-500.0,0.00035068,2]
[354913168,1740814253158,-1989.86903879,0.00035068,2]
[354913169,1740814342674,-500.0,0.00032876,2]
[354913170,1740814342696,-505.61208101,0.00032876,2]
[354913171,1740814342716,-500.0,0.00032876,2]
[354913172,1740814342736,-500.0,0.00032876,2]
[354913173,1740814342757,-500.0,0.00032876,2]
[354913174,1740814342778,-500.0,0.00032876,2]
[354913175,1740814342812,-500.0,0.00032876,2]
[354913176,1740814342836,-2657.85,0.00032876,2]
[354913177,1740814342858,-500.0,0.00032876,2]
[354913178,1740814342880,-3414.31,0.00032876,2]
[354913179,1740814342903,-500.0,0.00032876,2]
[354913180,1740814342925,-500.0,0.00032876,2]
[354913181,1740814342947,-500.0,0.00032876,2]
[354913182,1740814342969,-310.55208378,0.00032876,2]
[354913183,1740814342991,-500.0,0.00032876,2]
[354913184,1740814343013,-556.91,0.00032876,2]
[354913185,1740814343035,-500.0,0.00032876,2]
[354913186,1740814343058,-500.0,0.00032876,2]
[354913187,1740814343080,-500.0,0.00032876,2]
[354913188,1740814343103,-500.0,0.00032876,2]
[354913189,1740814343125,-539.07,0.00032876,2]
[354913190,1740814343153,-531.09,0.00032876,2]
[354913191,1740814343176,-500.0,0.00032876,2]
[354913192,1740814343199,-691.07,0.00032876,2]
[354913193,1740814343228,-500.0,0.00032876,2]
[354913194,1740814343251,-500.0,0.00032876,2]
[354913195,1740814343273,-785.42,0.00032876,2]
[354913196,1740814343297,-2969.51,0.00032876,2]
[354913197,1740814343321,-1097.82,0.00032876,2]
[354913198,1740814343344,-1980.9,0.00032876,2]
[354913199,1740814343367,-1530.28,0.00032876,2]
[354913200,1740814343390,-500.0,0.00032876,2]
[354913201,1740814343413,-517.72,0.00032876,2]
[354913202,1740814343438,-500.0,0.00032876,2]
[354913203,1740814343461,-1101.5,0.00032876,2]
[354913204,1740814343484,-1715.42,0.00032876,2]
[354913205,1740814343506,-1140.29,0.00032876,2]
[354913206,1740814343529,-500.0,0.00032876,2]
[354913207,1740814343552,-1982.18,0.00032876,2]
[354913208,1740814343576,-721.67,0.00032876,2]
[354913209,1740814343599,-500.0,0.00032876,2]
[354913210,1740814343621,-500.0,0.00032876,2]
[354913211,1740814343644,-500.0,0.00032876,2]
[354913212,1740814343667,-500.0,0.00032876,2]
[354913213,1740814343688,-500.0,0.00032876,2]
[354913214,1740814343710,-500.0,0.00032876,2]
[354913215,1740814343732,-2322.66,0.00032876,2]
[354913216,1740814343755,-150.0,0.00032967,2]
[354913217,1740814343777,-500.0,0.0003315,2]
[354913218,1740814343799,-500.0,0.0003315,2]
[354913219,1740814343822,-500.0,0.0003315,2]
[354913220,1740814343848,-500.0,0.0003315,2]
[354913221,1740814343871,-2657.85,0.0003315,2]
[354913222,1740814343894,-3414.31,0.0003315,2]
[354913223,1740814343919,-500.0,0.0003315,2]
[354913224,1740814343941,-500.0,0.0003315,2]
[354913225,1740814343968,-206.00583521,0.0003315,2]
[354913226,1740814393236,-2054.0,0.00025204,2]
[354913227,1740814393259,-400.0,0.00032875,2]
[354913228,1740814393281,-465.80094179,0.00032876,2]
[354913229,1740814393303,-500.0,0.00032876,2]
[354913230,1740814393325,-1503.04,0.00032876,2]
[354913231,1740814393349,-500.0,0.00032876,2]
[354913232,1740814393371,-500.0,0.00032876,2]
[354913233,1740814393393,-500.0,0.00032876,2]
[354913234,1740814393414,-500.0,0.00032876,2]
[354913235,1740814393436,-572.1,0.00032876,2]
[354913236,1740814393458,-500.0,0.00032876,2]
[354913237,1740814393480,-1785.45,0.00032876,2]
[354913238,1740814393503,-500.0,0.00032876,2]
[354913239,1740814393524,-500.0,0.00032876,2]
[354913240,1740814393887,-500.0,0.00032876,2]
[354913241,1740814393913,-500.0,0.00032876,2]
[354913242,1740814393936,-3118.5,0.00032876,2]
[354913243,1740814393959,-500.0,0.00032876,2]
[354913244,1740814393980,-500.0,0.00032876,2]
[354913245,1740814394002,-500.0,0.00032876,2]
[354913246,1740814394024,-500.0,0.00032876,2]
[354913247,1740814394045,-6614.52,0.00032876,2]
[354913248,1740814394068,-616.44,0.00032876,2]
[354913249,1740814394091,-519.04,0.00032876,2]
[354913250,1740814394115,-5350.06,0.00032876,2]
[354913251,1740814394137,-1.04905821,0.00032876,2]
[354913252,1740814410836,-498.95094179,0.00032876,2]
[354913253,1740814410861,-500.0,0.00032876,2]
[354913254,1740814410882,-500.0,0.00032876,2]
[354913255,1740814410904,-530.29,0.00032876,2]
[354913256,1740814410927,-2435.09,0.00032876,2]
[354913257,1740814410948,-2435.09,0.00032876,2]
[354913258,1740814410969,-2435.09,0.00032876,2]
[354913259,1740814410989,-1069.61,0.00032876,2]
[354913260,1740814411012,-2435.09,0.00032876,2]
[354913261,1740814411034,-2435.09,0.00032876,2]
[354913262,1740814411054,-2435.09,0.00032876,2]
[354913263,1740814411075,-500.0,0.00032876,2]
[354913264,1740814411097,-2435.09,0.00032876,2]
[354913265,1740814411119,-500.0,0.00032876,2]
[354913266,1740814411139,-500.0,0.00032876,2]
[354913267,1740814411162,-500.0,0.00032876,2]
[354913268,1740814411184,-1847.91,0.00032876,2]
[354913269,1740814411206,-500.0,0.00032876,2]
[354913270,1740814411227,-500.0,0.00032876,2]
[354913271,1740814411248,-500.0,0.00032876,2]
[354913272,1740814411269,-500.0,0.00032876,2]
[354913273,1740814411290,-500.0,0.00032876,2]
[354913274,1740814411311,-500.0,0.00032876,2]
[354913275,1740814411332,-500.0,0.00032876,2]
[354913276,1740814411353,-500.0,0.00032876,2]
[354913277,1740814411375,-500.0,0.00032876,2]
[354913278,1740814411396,-500.0,0.00032876,2]
[354913279,1740814411417,-500.28872659,0.00032876,2]
[354913280,1740814411439,-507.32033162,0.00032876,2]
[354913288,1740815221770,160.0,0.0002,3]
[354913290,1740815229205,-300.0,0.00025999,2]
[354913291,1740815229255,-19624.61182001,0.00026,3]
[354913292,1740815229305,-19624.61182001,0.00026,3]
[354913293,1740815229354,-420.0,0.00028137,2]
[354913295,1740815229407,-1893.0843793,0.00029368,2]
[354913296,1740815229457,-1000.0,0.00030137,2]
[354913297,1740815229508,-587.0,0.0003045,2]
[354913298,1740815229562,-2786.711607,0.00030776,2]
[354913299,1740815229611,-816.89677712,0.00031247,3]
[354913300,1740815229664,-782.873,0.00031248,28]
[354913301,1740815229713,-354.0,0.00031248,2]
[354913302,1740815229761,-24900.0,0.00031248,2]
[354913303,1740815229812,-174.916,0.00031248,28]
[354913304,1740815229860,-500.0,0.00031501,2]
[354913305,1740815229911,-500.0,0.00031501,2]
[354913306,1740815229960,-521.90352043,0.00031501,2]
[354913307,1740815230008,-500.0,0.00031501,2]
[354913308,1740815230058,-500.0,0.00031501,2]
[354913309,1740815230106,-500.0,0.00031501,2]
[354913310,1740815230156,-500.0,0.00031501,2]
[354913311,1740815230209,-500.0,0.00031501,2]
[354913312,1740815230257,-500.0,0.00031501,2]
[354913314,1740815230319,-303.21014283,0.00031501,2]
[354913315,1740815230375,-500.0,0.00031501,2]
[354913316,1740815230426,-500.0,0.00031501,2]
[354913317,1740815230476,-500.0,0.00031501,2]
[354913318,1740815230529,-500.0,0.00031501,2]
[354913319,1740815230583,-500.0,0.00031501,2]
[354913320,1740815230630,-500.0,0.00031501,2]
[354913321,1740815230681,-500.0,0.00031501,2]
[354913322,1740815230733,-500.0,0.00031501,2]
[354913323,1740815230782,-500.0,0.00031501,2]
[354913324,1740815230828,-591.86119852,0.00031501,2]
[354913325,1740815230879,-500.0,0.00031501,2]
[354913326,1740815230925,-500.0,0.00031501,2]
[354913327,1740815230974,-500.0,0.00031501,2]
[354913328,1740815231021,-500.0,0.00031501,2]
[354913329,1740815231069,-500.0,0.00031501,2]
[354913330,1740815231119,-500.0,0.00031501,2]
[354913331,1740815231166,-500.0,0.00031501,2]
[354913332,1740815231220,-500.0,0.00031501,2]
[354913333,1740815231270,-500.0,0.00031501,2]
[354913334,1740815231321,-500.0,0.00031501,2]
[354913335,1740815231371,-500.0,0.00031501,2]
[354913336,1740815231421,-391.86638165,0.00031501,2]
[354913337,1740815231472,-500.0,0.00031501,2]
[354913338,1740815231522,-500.0,0.00031501,2]
[354913339,1740815231574,-500.0,0.00031501,2]
[354913340,1740815231626,-500.0,0.00031501,2]
[354913341,1740815231681,-500.0,0.00031501,2]
[354913342,1740815231736,-304.33585473,0.00031501,2]
[354913343,1740815231801,-500.0,0.00031501,2]
[354913344,1740815231853,-500.0,0.00031501,2]
[354913345,1740815231905,-500.0,0.00031501,2]
[354913346,1740815231956,-500.0,0.00031501,2]
[354913347,1740815232011,-500.0,0.00031501,2]
[354913348,1740815232061,-500.0,0.00031501,2]
[354913349,1740815232117,-500.0,0.00031501,2]
[354913350,1740815232172,-500.0,0.00031501,2]
[354913351,1740815232231,-500.0,0.00031501,2]
[354913352,1740815232287,-500.0,0.00031501,2]
[354913353,1740815232338,-500.0,0.00031501,2]
[354913354,1740815232395,-500.0,0.00031501,2]
[354913355,1740815232448,-500.0,0.00031501,2]
[354913356,1740815232501,-500.0,0.00031501,2]
[354913357,1740815232561,-500.0,0.00031501,2]
[354913358,1740815232616,-500.0,0.00031501,2]
[354913359,1740815232672,-500.0,0.00031501,2]
[354913360,1740815232722,-500.0,0.00031501,2]
[354913361,1740815232777,-500.0,0.00031501,2]
[354913362,1740815232830,-500.0,0.00031501,2]
[354913363,1740815232884,-500.0,0.00031501,2]
[354913364,1740815233161,-500.0,0.00031501,2]
[354913365,1740815233216,-500.0,0.00031501,2]
[354913366,1740815233270,-500.0,0.00031501,2]
[354913367,1740815233321,-500.0,0.00031501,2]
[354913368,1740815233376,-500.0,0.00031501,2]
[354913369,1740815233428,-500.0,0.00031501,2]
[354913370,1740815233481,-231.62349509,0.00031501,2]
[354913371,1740815233532,-500.0,0.00031501,2]
[354913372,1740815233589,-500.0,0.00031501,2]
[354913373,1740815233642,-500.0,0.00031501,2]
[354913374,1740815233694,-500.0,0.00031501,2]
[354913375,1740815233747,-500.0,0.00031501,2]
[354913376,1740815233798,-500.0,0.00031501,2]
[354913377,1740815233851,-500.0,0.00031501,2]
[354913378,1740815233902,-500.0,0.00031501,2]
[354913379,1740815233953,-500.0,0.00031501,2]
[354913380,1740815234006,-500.0,0.00031501,2]
[354913381,1740815234070,-500.0,0.00031501,2]
[354913382,1740815234129,-500.0,0.00031501,2]
[354913383,1740815234187,-500.0,0.00031501,2]
[354913384,1740815234244,-500.0,0.00031501,2]
[354913385,1740815234297,-500.0,0.00031501,2]
[354913386,1740815234356,-315.0,0.00031501,2]
[354913387,1740815234412,-500.0,0.00031501,2]
[354913388,1740815234471,-500.0,0.00031501,2]
[354913389,1740815234530,-500.0,0.00031501,2]
[354913390,1740815234591,-500.0,0.00031501,2]
[354913391,1740815234649,-500.0,0.00031501,2]
[354913392,1740815234708,-500.0,0.00031501,2]
[354913393,1740815234767,-500.0,0.00031501,2]
[354913394,1740815234824,-500.0,0.00031501,2]
[354913395,1740815234884,-500.0,0.00031501,2]
[354913396,1740815234941,-500.0,0.00031501,2]
[354913397,1740815235004,-500.0,0.00031501,2]
[354913398,1740815235061,-500.0,0.00031501,2]
[354913399,1740815235117,-500.0,0.00031501,2]
[354913400,1740815235172,-499.99999999,0.00031501,2]
[354913401,1740815235232,-500.0,0.00031501,2]
[354913402,1740815235289,-500.0,0.00031501,2]
[354913403,1740815235350,-500.0,0.00031501,2]
[354913404,1740815235410,-500.0,0.00031501,2]
[354913405,1740815235472,-500.0,0.00031501,2]
[354913406,1740815235532,-500.0,0.00031501,2]
[354913407,1740815235594,-500.0,0.00031501,2]
[354913408,1740815235653,-500.0,0.00031501,2]
[354913409,1740815235712,-500.0,0.00031501,2]
[354913410,1740815235789,-500.0,0.00031501,2]
[354913411,1740815235849,-500.0,0.00031501,2]
[354913412,1740815235906,-500.0,0.00031501,2]
[354913413,1740815235963,-500.0,0.00031501,2]
[354913414,1740815236020,-500.0,0.00031501,2]
[354913415,1740815236074,-3637.437206,0.00031503,64]
[354913416,1740815236132,-160.53,0.00031618,2]
[354913417,1740815236197,-433.39,0.00031713,3]
[354913418,1740815236257,-650.1,0.00031713,3]
[354913419,1740815236310,-325.05,0.00031713,3]
[354913420,1740815236368,-487.6,0.00031713,3]
[354913421,1740815236422,-10000.0,0.00031723,2]
[354913422,1740815236480,-204.71370617,0.000319,6]
[354913423,1740815236538,-204.71370616,0.00032358,6]
[354913424,1740815236592,-184.58281798,0.000327,2]
[354913425,1740815236644,-1139.77816133,0.00032776,2]
[354913426,1740815236697,-1139.77816131,0.00032776,2]
[354913427,1740815236753,-1139.77816131,0.00032777,2]
[354913428,1740815236806,-1139.77816131,0.00032777,2]
[354913429,1740815236860,-1139.77816131,0.00032777,2]
[354913430,1740815236914,-154.79243335,0.000328,2]
[354913431,1740815236974,-204.71370616,0.00032817,6]
[354913432,1740815237028,-162.52,0.00032865,3]
[354913433,1740815237083,-500.0,0.00032873,5]
[354913434,1740815237139,-264.8846208,0.00032873,5]
[354913435,1740815237199,-500.0,0.00032873,5]
[354913436,1740815237257,-500.0,0.00032873,5]
[354913437,1740815237313,-500.0,0.00032873,5]
[354913438,1740815237369,-500.0,0.00032873,5]
[354913439,1740815237423,-305.69556243,0.00032873,5]
[354913440,1740815237478,-500.0,0.00032873,5]
[354913441,1740815237533,-39.61822712,0.00032873,5]
[354913442,1740815241129,-460.38177288,0.00032873,5]
[354913443,1740815241155,-104.7409177,0.00032873,5]
[354913444,1740815245124,-291.43108274,0.00032873,5]
[354913445,1740815253089,-238.68304575,0.00032776,2]
[354913446,1740815253112,-161.9,0.00032866,3]
[354913447,1740815253133,-5.76248085,0.00032873,5]
[354913450,1740815345131,-1296.6632131,0.00032049,2]
[354913451,1740815345162,-1074.45343714,0.00032776,2]
[354913452,1740815345200,-485.74,0.00032866,3]
[354913453,1740815345233,-400.0,0.00032872,2]
[354913454,1740815345264,-98.06551871,0.00032873,5]
[354913455,1740815345296,-500.0,0.00032873,5]
[354913456,1740815345326,-500.0,0.00032873,5]
[354913457,1740815345353,-500.0,0.00032873,5]
[354913458,1740815345380,-500.0,0.00032873,5]
[354913459,1740815345410,-500.0,0.00032873,5]
[354913460,1740815345438,-472.00599499,0.00032873,5]
[354913461,1740815345471,-615.30934532,0.00032873,2]
[354913462,1740815345708,-500.0,0.00032873,5]
[354913463,1740815345736,-500.0,0.00032873,5]
[354913464,1740815345765,-626.298,0.00032873,33]
[354913465,1740815345791,-611.51350501,0.00032875,2]
[354913466,1740815345818,-18760.08925855,0.00032875,2]
[354913467,1740815345844,-303.91744759,0.00032875,2]
[354913468,1740815345871,-500.0,0.00032875,2]
[354913469,1740815345899,-500.0,0.00032875,2]
[354913470,1740815345926,-500.0,0.00032875,2]
[354913471,1740815345955,-421.94067515,0.00032875,2]
[354913472,1740815345982,-560.74099552,0.00032875,2]
[354913473,1740815346012,-500.0,0.00032875,2]
[354913474,1740815346042,-500.0,0.00032875,2]
[354913475,1740815346069,-500.0,0.00032875,2]
[354913476,1740815346096,-500.0,0.00032875,2]
[354913477,1740815346125,-500.0,0.00032875,2]
[354913478,1740815346156,-454.65124428,0.00032875,2]
[354913479,1740815346185,-500.0,0.00032875,2]
[354913480,1740815346219,-599.09626463,0.00032875,2]
[354913481,1740815346251,-500.0,0.00032875,2]
[354913482,1740815346283,-589.37065053,0.00032875,2]
[354913483,1740815346316,-500.0,0.00032875,2]
[354913484,1740815346347,-500.0,0.00032875,2]
[354913485,1740815346378,-500.0,0.00032875,2]
[354913486,1740815346409,-500.0,0.00032875,2]
[354913487,1740815346439,-604.66234951,0.00032875,2]
[354913488,1740815346465,-500.0,0.00032876,2]
[354913489,1740815346489,-404.01813003,0.00032876,2]
[354913490,1740815346510,-500.0,0.00032876,2]
[354913491,1740815346534,-500.0,0.00032876,2]
[354913492,1740815346557,-500.0,0.00032876,2]
[354913493,1740815346580,-500.0,0.00032876,2]
[354913494,1740815346602,-500.0,0.00032876,2]
[354913495,1740815346623,-500.0,0.00032876,2]
[354913496,1740815346645,-500.0,0.00032876,2]
[354913497,1740815346668,-623.01,0.00032876,2]
[354913498,1740815347172,-500.0,0.00032876,2]
[354913499,1740815347221,-500.0,0.00032876,2]
[354913500,1740815347245,-500.0,0.00032876,2]
[354913501,1740815347269,-500.0,0.00032876,2]
[354913502,1740815347292,-1097.05,0.00032876,2]
[354913503,1740815347314,-547.63,0.00032876,2]
[354913504,1740815347337,-500.0,0.00032876,2]
[354913505,1740815347360,-500.0,0.00032876,2]
[354913506,1740815347382,-500.0,0.00032876,2]
[354913507,1740815347404,-548.98,0.00032876,2]
[354913508,1740815347427,-500.0,0.00032876,2]
[354913509,1740815347448,-500.0,0.00032876,2]
[354913510,1740815347471,-500.0,0.00032876,2]